Workbook

Sheet Feuil1
AB1: DATE | AC1: Plafonds 2016 | AD1: PLAFONDS 2017 | AE1: Proratisés 2016 | AF1: Annualisés 2017
AB2: =DATE(YEAR(E9),12,31) -> 2018-12-31 | AC2: 82200 | AD2: 170000 | AE2: =(AC2*AB3)/364 -> 82200 | AF2: =(AD2*AB3)/364 -> 170000
K3: =IF(AF14=FALSE,"Activité principale","Activité principale et secondaire") -> Activité principale | AB3: =IF(AB5<2015,364,DATEDIF(E9,AB2,"d")) -> 364 | AC3: 32900 | AD3: 70000 | AE3: =(AC3*AB3)/364 -> 32900 | AF3: =(AD3*AB3)/364 -> 70000
K4: Année | L4: Chiffre d'affaires prévu ou réalisé | O4: Plafonds en vigueur suivant art. 50.0 et 102ter du CGI | Q4: Analyse et conséquences | AA4: N+2 | AB4: =IF(AB5=2017,AB5+2,IF(AB5=2018,AB5+2,"")) -> 2020
K5: Début activité | U5: Activité globale ou principale | Y5: Sec | Z5: ET | AA5: création (N) | AB5: =IF(E9="","",YEAR(E9)) -> 2018
K6: =IF(E9="","",YEAR(E9)) -> 2018 | L6: =IF(AF14=TRUE,"Global","Principal") -> Principal | M6: =IF(AF14=TRUE,"Principal","") ->  | N6: =IF(AF14=TRUE,"Secondaire","") ->  | O6: =IF(AF14=TRUE,"Global","Principal") -> Principal | P6: =IF(AF14=TRUE,"Prestations/libéral","") ->  | U6: N | V6: N-1 | W6: N-2 | X6: R | Y6: R | Z6: R | AB6: =IF(AB5<=2015,2015,IF(AB5>2015,YEAR(E9))) -> 2018
K7: =AB6 -> 2018 | L7: =IF(AF14=TRUE,D22+E22,D22) -> 0 | M7: =IF(AF14=TRUE,D22,"") ->  | N7: =IF(AF14=TRUE,E22,"") ->  | O7: =IF(K6>=2015,"proratisé","non proratisé") -> proratisé | P7: =IF(P6="","",O7) ->  | Q7: =IF(AND(X7=0,AF14=FALSE),AB9,IF(AND(Z7=0,AF14=TRUE),AB9,IF(AND(X7=1,AF14=FALSE),AB10,IF(AND(Z7=1,AF14=TRUE),AB10,"")))) -> Chiffre d'affaires inférieur au plafond autorisé. Application du régime micro-fiscal. | U7: =IF(L7<=O8,0,IF(L7>O8,1,"")) -> 0 | X7: =U7 -> 0 | Y7: =IF(N7<=P8,0,1) -> 0 | Z7: =IF(AND(X7=0,Y7=0),0,1) -> 0
O8: =IF(AND(AND(K6<2015,AF14=FALSE,AB14=TRUE)),AD2,IF(AND(AND(K6<2015,AF14=FALSE,AB15=TRUE)),AD3,IF(AND(AND(K6<2015,AF14=FALSE,AB16=TRUE)),AD3,IF(AND(AND(K6>=2015,AF14=FALSE,AB14=TRUE)),AF2,IF(AND(AND(K6>=2015,AF14=FALSE,AB15=TRUE)),AF3,IF(AND(AND(K6>=2015,AF14=FALSE,AB16=TRUE)),AF3,IF(AND(AND(K6<2015,AF14=TRUE,AB14=TRUE)),AD2,IF(AND(AND(K6<2015,AF14=TRUE,AB15=TRUE)),AD3,IF(AND(AND(K6<2015,AF14=TRUE,AB16=TRUE)),AD3,IF(AND(AND(K6>=2015,AF14=TRUE,AB14=TRUE)),AF2,IF(AND(AND(K6>=2015,AF14=TRUE,AB15=TRUE)),AF3,IF(AND(AND(K6>=2015,AF14=TRUE,AB16=TRUE)),AF3,"")))))))))))) ->  | P8: =IF(AND(AF14=TRUE,P7="proratisé"),AF3,IF(AND(AF14=TRUE,P7="non proratisé"),AD3,"")) ->  | AB8: Conséquences :
C9: Date de début d'activité : | E9: 2018-01-01 | AB9: =IF(AND(X7=0,AF14=FALSE),"Chiffre d'affaires inférieur au plafond autorisé. Application du régime micro-fiscal.",IF(AND(Z7=0,AF14=TRUE),"Chiffre d'affaires inférieur au plafond autorisé. Application du régime micro-fiscal.",IF(AND(X10=0,AF14=FALSE),"Chiffre d'affaires inférieur au plafond autorisé. Application du régime micro-fiscal.",IF(AND(Z10=0,AF14=TRUE),"Chiffre d'affaires inférieur au plafond autorisé. Application du régime micro-fiscal.",IF(AND(X13=0,AF14=FALSE),"Chiffre d'affaires inférieur au plafond autorisé. Application du régime micro-fiscal.",IF(AND(Z13=0,AF14=TRUE),"Chiffre d'affaires inférieur au plafond autorisé. Application du régime micro-fiscal.",IF(AND(X16=0,AF14=FALSE),"Chiffre d'affaires inférieur au plafond autorisé. Application du régime micro-fiscal.",IF(AND(Z16=0,AF14=TRUE),"Chiffre d'affaires inférieur au plafond autorisé. Application du régime micro-fiscal.",IF(AND(X19=0,AF14=FALSE),"Chiffre d'affaires inférieur au plafond autorisé. Application du régime micro-fiscal.",IF(AND(Z19=0,AF14=TRUE),"Chiffre d'affaires inférieur au plafond autorisé. Application du régime micro-fiscal.","")))))))))) -> Chiffre d'affaires inférieur au plafond autorisé. Application du régime micro-fiscal.
K10: =K7+1 -> 2019 | L10: =IF(AF14=TRUE,D23+E23,D23) -> 0 | M10: =IF(AF14=TRUE,D23,"") ->  | N10: =IF(AF14=TRUE,E23,"") ->  | O10: =IF(AND(AF14=FALSE,AB14=TRUE),AD2,IF(AND(AF14=FALSE,AB15=TRUE),AD3,IF(AND(AF14=FALSE,AB16=TRUE),AD3,IF(AND(AF14=TRUE,AB14=TRUE),AD2,IF(AND(AF14=TRUE,AB15=TRUE),AD3,IF(AND(AF14=TRUE,AB16=TRUE),AD3,"")))))) ->  | P10: =IF(AF14=TRUE,AD3,"") ->  | Q10: =IF(AND(X10=0,AF14=FALSE),AB9,IF(AND(Z10=0,AF14=TRUE),AB9,IF(AND(X10=1,AF14=FALSE),AB10,IF(AND(Z10=1,AF14=TRUE),AB10,"")))) -> Chiffre d'affaires inférieur au plafond autorisé. Application du régime micro-fiscal. | U10: =IF(L10<=O10,0,IF(L10>O10,1,"")) -> 0 | V10: =U7 -> 0 | X10: =U10 -> 0 | Y10: =IF(N10<=P10,0,1) -> 0 | Z10: =IF(AND(X10=0,Y10=0),0,1) -> 0 | AB10: =IF(AND(X7=1,AF14=FALSE),"Chiffre d'affaires supérieur au plafond autorisé. Application du régime micro-fiscal mais mise en surveillance du CA.",IF(AND(Z7=1,AF14=TRUE),"Chiffre d'affaires supérieur au plafond autorisé. Application du régime micro-fiscal mais mise en surveillance du CA.",IF(AND(X10=1,AF14=FALSE),"Chiffre d'affaires supérieur au plafond autorisé. Application du régime micro-fiscal mais mise en surveillance du CA.",IF(AND(Z10=1,AF14=TRUE),"Chiffre d'affaires supérieur au plafond autorisé. Application du régime micro-fiscal mais mise en surveillance du CA.",IF(AND(X13=1,AF14=FALSE),"Chiffre d'affaires supérieur au plafond autorisé. Application du régime micro-fiscal mais mise en surveillance du CA.",IF(AND(Z13=1,AF14=TRUE),"Chiffre d'affaires supérieur au plafond autorisé. Application du régime micro-fiscal mais mise en surveillance du CA.",IF(AND(X16=1,AF14=FALSE),"Chiffre d'affaires supérieur au plafond autorisé. Application du régime micro-fiscal mais mise en surveillance du CA.",IF(AND(Z16=1,AF14=TRUE),"Chiffre d'affaires supérieur au plafond autorisé. Application du régime micro-fiscal mais mise en surveillance du CA.",IF(AND(X19=1,AF14=FALSE),"Chiffre d'affaires supérieur au plafond autorisé. Application du régime micro-fiscal mais mise en surveillance du CA.",IF(AND(Z19=1,AF14=TRUE),"Chiffre d'affaires supérieur au plafond autorisé. Application du régime micro-fiscal mais mise en surveillance du CA.","")))))))))) -> 
C11: Les activités exercées (un choix possible par activité principale et secondaire) : | AB11: =IF(AND(X7=2,AF14=FALSE),"Le plafond de CA a été dépassé deux années consécutives. Le régime réel d'imposition s'applique à compter du 1er janvier de cette année.",IF(AND(Z7=2,AF14=TRUE),"Le plafond de CA a été dépassé deux années consécutives. Le régime réel d'imposition s'applique à compter du 1er janvier de cette année.",IF(AND(X10=2,AF14=FALSE),"Le plafond de CA a été dépassé deux années consécutives. Le régime réel d'imposition s'applique à compter du 1er janvier de cette année.",IF(AND(Z10=2,AF14=TRUE),"Le plafond de CA a été dépassé deux années consécutives. Le régime réel d'imposition s'applique à compter du 1er janvier de cette année.",IF(AND(X13=2,AF14=FALSE),"Le plafond de CA a été dépassé deux années consécutives. Le régime réel d'imposition s'applique à compter du 1er janvier de cette année.",IF(AND(Z13=2,AF14=TRUE),"Le plafond de CA a été dépassé deux années consécutives. Le régime réel d'imposition s'applique à compter du 1er janvier de cette année.",IF(AND(X16=2,AF14=FALSE),"Le plafond de CA a été dépassé deux années consécutives. Le régime réel d'imposition s'applique à compter du 1er janvier de cette année.",IF(AND(Z16=2,AF14=TRUE),"Le plafond de CA a été dépassé deux années consécutives. Le régime réel d'imposition s'applique à compter du 1er janvier de cette année.",IF(AND(X19=2,AF14=FALSE),"Le plafond de CA a été dépassé deux années consécutives. Le régime réel d'imposition s'applique à compter du 1er janvier de cette année.",IF(AND(Z19=2,AF14=TRUE),"Le plafond de CA a été dépassé deux années consécutives. Le régime réel d'imposition s'applique à compter du 1er janvier de cette année.","")))))))))) -> 
AB12: =IF(AND(X7=3,AF14=FALSE),"Le régime micro-fiscal s'applique à nouveau car CA année précédente < au plafond.",IF(AND(Z7=3,AF14=TRUE),"Le régime micro-fiscal s'applique à nouveau car CA année précédente < au plafond.",IF(AND(X10=3,AF14=FALSE),"Le régime micro-fiscal s'applique à nouveau car CA année précédente < au plafond.",IF(AND(Z10=3,AF14=TRUE),"Le régime micro-fiscal s'applique à nouveau car CA année précédente < au plafond.",IF(AND(X13=3,AF14=FALSE),"Le régime micro-fiscal s'applique à nouveau car CA année précédente < au plafond.",IF(AND(Z13=3,AF14=TRUE),"Le régime micro-fiscal s'applique à nouveau car CA année précédente < au plafond.",IF(AND(X16=3,AF14=FALSE),"Le régime micro-fiscal s'applique à nouveau car CA année précédente < au plafond.",IF(AND(Z16=3,AF14=TRUE),"Le régime micro-fiscal s'applique à nouveau car CA année précédente < au plafond.",IF(AND(X19=3,AF14=FALSE),"Le régime micro-fiscal s'applique à nouveau car CA année précédente < au plafond.",IF(AND(Z19=3,AF14=TRUE),"Le régime micro-fiscal s'applique à nouveau car CA année précédente < au plafond.","")))))))))) -> 
K13: =K10+1 -> 2020 | L13: =IF(AF14=TRUE,D24+E24,D24) -> 0 | M13: =IF(AF14=TRUE,D24,"") ->  | N13: =IF(AF14=TRUE,E24,"") ->  | O13: =O10 ->  | P13: =IF(AF14=TRUE,AD3,"") ->  | Q13: =IF(AND(X13=0,AF14=FALSE),AB9,IF(AND(Z13=0,AF14=TRUE),AB9,IF(AND(X13=1,AF14=FALSE),AB10,IF(AND(Z13=1,AF14=TRUE),AB10,IF(AND(X13=2,AF14=FALSE),AB11,IF(AND(Z13=2,AF14=TRUE),AB11,"")))))) -> Chiffre d'affaires inférieur au plafond autorisé. Application du régime micro-fiscal. | U13: =IF(L13<=O13,0,IF(L13>O13,1,"")) -> 0 | V13: =U10 -> 0 | W13: =U7 -> 0 | X13: =IF(AND(AND(X7=0,X10=0,U13=0)),0,IF(AND(AND(X7=1,X10=0,U13=0)),0,IF(AND(AND(X7=0,X10=1,U13=0)),0,IF(AND(AND(X7=0,X10=0,U13=1)),1,IF(AND(AND(X7=0,X10=1,U13=1)),1,IF(AND(AND(X7=1,X10=0,U13=1)),1,IF(AND(AND(X7=1,X10=1,U13<=1)),2,""))))))) -> 0 | Y13: =IF(N13<=P13,0,1) -> 0 | Z13: =IF(AND(AND(AND(Z7<=1,Z10=0,X13=0,Y13=0))),0,IF(AND(AND(AND(Z7=0,Z10<=1,X13=0,Y13=0))),0,IF(AND(AND(AND(Z7<=1,Z10=0,X13<=1,Y13<=1))),1,IF(AND(AND(AND(Z7=0,Z10<=1,X13<=1,Y13<=1))),1,IF(AND(AND(AND(Z7=1,Z10=1,X13<=2,Y13<=1))),2,""))))) -> 0 | AB13: CTRL AP | AD13: CTRL AS | AF13: CTRL AS OUI
AB14: FALSE | AC14: =IF(AND(AB14=TRUE,AB5<2017),D22,AF2) -> 170000 | AD14: FALSE | AE14: =IF(AD14=TRUE,AF2,"") ->  | AF14: FALSE
AB15: FALSE | AC15: =IF(AND(AB15=TRUE,AB5<2017),D22,AF3) -> 70000 | AD15: FALSE | AE15: =IF(AD15=TRUE,AF3,"") ->  | AF15: =IF(AF14=FALSE,0,1) -> 0
K16: =K13+1 -> 2021 | L16: =IF(AF14=TRUE,D25+E25,D25) -> 0 | M16: =IF(AF14=TRUE,D25,"") ->  | N16: =IF(AF14=TRUE,E25,"") ->  | O16: =O13 ->  | P16: =IF(AF14=TRUE,AD3,"") ->  | Q16: =IF(AND(X16=0,AF14=FALSE),AB9,IF(AND(Z16=0,AF14=TRUE),AB9,IF(AND(X16=1,AF14=FALSE),AB10,IF(AND(Z16=1,AF14=TRUE),AB10,IF(AND(X16=2,AF14=FALSE),AB11,IF(AND(Z16=2,AF14=TRUE),AB11,IF(AND(X16=3,AF14=FALSE),AB12,IF(AND(Z16=3,AF14=TRUE),AB12,"")))))))) -> Chiffre d'affaires inférieur au plafond autorisé. Application du régime micro-fiscal. | U16: =IF(L16<=O16,0,IF(L16>O16,1,"")) -> 0 | V16: =U13 -> 0 | W16: =V13 -> 0 | X16: =IF(AND(AND(X10=0,X13=0,U16=0)),0,IF(AND(AND(X10=1,X13=0,U16=0)),0,IF(AND(AND(X10=0,X13=1,U16=0)),0,IF(AND(AND(X10=0,X13=0,U16=1)),1,IF(AND(AND(X10=0,X13=1,U16=1)),1,IF(AND(AND(X10=1,X13=0,U16=1)),1,IF(AND(AND(X10=1,U13=1,U16<=2)),2,IF(AND(X13=2,U16<=1),3,"")))))))) -> 0 | Y16: =IF(N16<=P16,0,1) -> 0 | Z16: =IF(AND(AND(AND(Z10<=1,Z13=0,X16=0,Y16=0))),0,IF(AND(AND(AND(Z10=0,Z13<=1,X16=0,Y16=0))),0,IF(AND(AND(AND(Z10<=1,Z13=0,X16<=1,Y16<=1))),1,IF(AND(AND(AND(Z10=0,Z13<=1,X16<=1,Y16<=1))),1,IF(AND(U10=1,U13=1),2,IF(AND(Y10=1,Y13=1),2,IF(AND(AND(Z13=2,U13=0,Y13=0)),3,""))))))) -> 0 | AB16: FALSE | AC16: =IF(AND(AB16=TRUE,AB5<2017),D22,AF3) -> 70000 | AD16: FALSE | AE16: =IF(AD16=TRUE,AF3,"") ->  | AF16: =IF(C23=2018,1,IF(C23=2019,1,0)) -> 1
AC17: CTRL Dpst 1 | AD17: CTRL Dpst 2 | AE17: CTRL Dpst 3 | AF17: CTRL Dpst 4
AB18: Vente | AC18: =IF(AND(AB5<2017,AC14<=AD2),0,IF(AND(AB5>=2017,D22>AF2),1,3)) -> 3 | AD18: =IF(D23>AD2,1,0) -> 0 | AE18: =IF(AND(AB5>=2017,E22>AE14),1,0) -> 0 | AF18: =IF(E23>AD2,1,0) -> 0
C19: =IF(E9="","","Indiquez ici vos chiffres d'affaires réalisés ou prévisionnels :") -> Indiquez ici vos chiffres d'affaires réalisés ou prévisionnels : | K19: =K16+1 -> 2022 | L19: =IF(AF14=TRUE,D26+E26,D26) -> 0 | M19: =IF(AF14=TRUE,D26,"") ->  | N19: =IF(AF14=TRUE,E26,"") ->  | O19: =O16 ->  | P19: =IF(AF14=TRUE,AD3,"") ->  | Q19: =IF(AND(X19=0,AF14=FALSE),AB9,IF(AND(Z19=0,AF14=TRUE),AB9,IF(AND(X19=1,AF14=FALSE),AB10,IF(AND(Z19=1,AF14=TRUE),AB10,IF(AND(X19=2,AF14=FALSE),AB11,IF(AND(Z19=2,AF14=TRUE),AB11,IF(AND(Z19=3,AF14=TRUE),AB12,IF(AND(X19=3,AF14=FALSE),AB12,IF(AND(Z19=4,AF14=FALSE),AB25,IF(AND(Z19=4,AF14=TRUE),AB25,"")))))))))) -> Chiffre d'affaires inférieur au plafond autorisé. Application du régime micro-fiscal. | U19: =IF(L19<=O19,0,IF(L19>O19,1,"")) -> 0 | V19: =U16 -> 0 | W19: =V16 -> 0 | X19: =IF(AND(AND(X13=0,X16=0,U19=0)),0,IF(AND(AND(X13=1,X16=0,U19=0)),0,IF(AND(AND(X13=0,X16=1,U19=0)),0,IF(AND(AND(X13=0,X16=0,U19=1)),1,IF(AND(AND(X13=0,X16=1,U19=1)),1,IF(AND(AND(X13=1,X16=0,U19=1)),1,IF(AND(AND(U13=1,U16=1,U19<=2)),2,IF(AND(X16=2,U19<=1),3,IF(AND(AND(U13=0,U16=0,U19<=1)),3,IF(AND(U16=1,U19=1),4,"")))))))))) -> 0 | Y19: =IF(N19<=P19,0,1) -> 0 | Z19: =IF(AND(AND(AND(Z13<=1,Z16=0,X19=0,Y19=0))),0,IF(AND(AND(AND(Z13=0,Z16<=1,X19=0,Y19=0))),0,IF(U19=1,1,IF(Y19=1,1,IF(AND(U13=1,U16=1),2,IF(AND(Y13=1,Y16=1),2,IF(AND(AND(Z16=3,U19=0,Y19=0)),3,IF(AND(AND(Z13=1,U16=0,Y16=0)),3,IF(AND(AND(AND(Z13=1,Z16=2,X19<=1,Y19<=1))),3,IF(AND(X16=1,X19=1),4,IF(AND(Y16=1,Y19=1),4,""))))))))))) -> 0 | AB19: Presta | AC19: =IF(AND(AB5<2017,AC15<=AD3),0,IF(AND(AND(AB5>=2017,D22>AF3,AF15=0)),1,3)) -> 3 | AD19: =IF(AND(AB15=TRUE,D23>AD3),1,0) -> 0 | AE19: =IF(AND(AB5>=2017,E22>AE15),1,0) -> 0 | AF19: =IF(AND(AD15=TRUE,E23>AD3),1,0) -> 0
AB20: Lib | AC20: =IF(AND(AB5<2017,AC16<=AD3),0,IF(AND(AND(AB5>=2017,D22>AF3,AF15=0)),1,3)) -> 3 | AD20: =IF(AND(AB16=TRUE,D23>AD3),1,0) -> 0 | AE20: =IF(AND(AB5>=2017,E22>AE16),1,0) -> 0 | AF20: =IF(AND(AD16=TRUE,E23>AD3),1,0) -> 0
D21: =IF(AF14=FALSE,"Activité principale","Activité principale") -> Activité principale | E21: =IF(AF14=TRUE,"Activité secondaire","") ->  | AC21: Ctrl CA global
C22: =IF(AB6<=2015,2015,IF(AB6>2015,AB6,"")) -> 2018 | AB22: =AB6 -> 2018 | AC22: =IF(AB5<=2016,AD2,AF2+AF3) -> 240000
C23: =C22+1 -> 2019 | AB23: =AB22+1 -> 2019 | AC23: =D23+E23 -> 0
C24: =C23+1 -> 2020
C25: =C24+1 -> 2021 | AB25: =IF(AND(X19=4,AF14=FALSE),"Le régime micro-fiscal s'applique pour la dernière année car le plafond est dépassé les deux années précédentes",IF(AND(Z19=4,AF14=TRUE),"Le régime micro-fiscal s'applique pour la dernière année car le plafond est dépassé les deux années précédentes","")) -> 
C26: =C25+1 -> 2022
C28: © UPSME Août 2018

Sheet TVA
P1: Date jour | Q1: =TODAY() -> 2018-08-27 | R1: date création | S1: =D7 -> 2018-05-02 | T1: création < 2017 | U1: création en 2017 | V1: création en 2018 | W1: =IF(B7=2018,1,0) -> 1 | Z1: Seuils 2014 - 2016 | AB1: Seuils 2017 - 2019
D2: Simulateur de TVA Micro-entrepreneur | P2: Année | Q2: =YEAR(Q1) -> 2018 | R2: Nbre jours pro. | S2: =DATEDIF(D7,Q4,"d") -> 243 | V2: nature activité : | Y2: Normal | Z2: 82200 | AA2: 90300 | AB2: 82800 | AC2: 91000
P3: Année N-2 | Q3: =Q2-2 -> 2016 | R3: Seuil 1 TVA | S3: 33200 | V3: vente | W3: =Feuil1!AB14 -> FALSE | X3: =IF(W3=FALSE,0,IF(W3=TRUE,1,"")) -> 0 | Y3: Proratisé | Z3: =ROUND((Z2*S2)/364,0) -> 54875 | AA3: =ROUND((AA2*S2)/364,0) -> 60283 | AB3: =ROUND((AB2*S2)/364,0) -> 55276 | AC3: =ROUND((AC2*S2)/364,0) -> 60750
P4: Fin année | Q4: =DATE(YEAR(S1),12,31) -> 2018-12-31 | R4: Seuil 1 TVA proratisé | S4: =ROUND((S3*S2)/364,0) -> 22164 | V4: prestation | W4: =Feuil1!AB15 -> FALSE | X4: =IF(W4=FALSE,0,IF(W4=TRUE,1,"")) -> 0 | Y4: Normal | Z4: 32900 | AA4: 34900 | AB4: 33200 | AC4: 35200
P5: Prestations de services | R5: Seuil 2 TVA | S5: 35200 | V5: libéral | W5: =Feuil1!AB16 -> FALSE | X5: =IF(W5=FALSE,0,IF(W5=TRUE,1,"")) -> 0 | Y5: Proratisé | Z5: =ROUND((Z4*S2)/364,0) -> 21963 | AA5: =ROUND((AA4*S2)/364,0) -> 23299 | AB5: =ROUND((AB4*S2)/364,0) -> 22164 | AC5: =ROUND((AC4*S2)/364,0) -> 23499
C6: Activité principale | D6: Date de début d'activité | F6: Activité exercée | P6: Activité libérale | R6: Seuil 2 TVA proratisé | S6: =ROUND((S5*S2)/364,0) -> 23499
B7: 2018 | C7: 0 | D7: 2018-05-02 | E7: =YEAR(D7) -> 2018 | F7: Prestations de services | P7: Année N-1 | Q7: =(YEAR(Q1))-1 -> 2017 | R7: Seuil 3 TVA | S7: 82800 | V7: nature TVA
B8: =B7+1 -> 2019 | C8: 0 | O8: =IF(F13="Vente, Location Meublés",1,0) -> 0 | P8: Vente, Location Meublés | R8: Seuil 3 TVA proratisé | S8: =ROUND((S7*S2)/364,0) -> 55276 | V8: TVA vente
B9: =B8+1 -> 2020 | C9: 0 | O9: =IF(F13="Prestations de services",1,0) -> 1 | P9: Prestations de services | R9: Seuil 4 TVA | S9: 91000 | V9: TVA presta
B10: =B9+1 -> 2021 | C10: 0 | O10: =IF(F13="Activité libérale",1,0) -> 0 | P10: Activité libérale | R10: Seuil 4 TVA proratisé | S10: =ROUND((S9*S2)/364,0) -> 60750 | V10: TVA libéral
B11: =B10+1 -> 2022 | C11: 0
B13: Activité principale : | F13: =F7 -> Prestations de services | P13: =IF(O17=2,"Application du régime réel de TVA à compter du 1er jour du mois de dépassement de l'année en cours.",IF(O20=2,"Application du régime réel de TVA à compter du 1er jour du mois de dépassement de l'année en cours.",IF(O23=2,"Application du régime réel de TVA à compter du 1er jour du mois de dépassement de l'année en cours.",IF(O26=2,"Application du régime réel de TVA à compter du 1er jour du mois de dépassement de l'année en cours.",IF(O29=2,"Application du régime réel de TVA à compter du 1er jour du mois de dépassement de l'année en cours.",""))))) -> 
B14: Année | C14: =IF(B7<=2017,"Chiffre d'affaires réalisé",IF(B7>=2018,"Chiffre d'affaires prévu","")) -> Chiffre d'affaires prévu | D14: Seuils en vigueur au I de l'article 293B du CGI | F14: Bascule/Surveillance | G14: Régime d'imposition de TVA | P14: =IF(O17=3,"Application du régime réel de TVA tout au long de l'année.",IF(O20=3,"Application du régime réel de TVA tout au long de l'année.",IF(O23=3,"Application du régime réel de TVA tout au long de l'année.",IF(O26=3,"Application du régime réel de TVA tout au long de l'année.",IF(O29=3,"Application du régime réel de TVA tout au long de l'année.",""))))) -> 
B15: Début d'activité | L15: 1ère cond. | M15: 2ème cond | N15: 3ème cond | O15: Conséquence | P15: =IF(O17=0,"Franchise tout au long de l'année en cours",IF(O20=0,"Franchise tout au long de l'année en cours",IF(O23=0,"Franchise tout au long de l'année en cours",IF(O26=0,"Franchise tout au long de l'année en cours",IF(O29=0,"Franchise tout au long de l'année en cours",""))))) -> Franchise tout au long de l'année en cours
B16: =E7 -> 2018 | D16: a du 1° | E16: b du 2° | L16: Année N | M16: Année N-1 | N16: Année N-2 | P16: =IF(O17=1,"Franchise tout au long de l'année en cours mais mise sous surveillance du chiffre d'affaires pour les années suivantes",IF(O20=1,"Franchise tout au long de l'année en cours mais mise sous surveillance du chiffre d'affaires pour les années suivantes",IF(O23=1,"Franchise tout au long de l'année en cours mais mise sous surveillance du chiffre d'affaires pour les années suivantes",IF(O26=1,"Franchise tout au long de l'année en cours mais mise sous surveillance du chiffre d'affaires pour les années suivantes",IF(O29=1,"Franchise tout au long de l'année en cours mais mise sous surveillance du chiffre d'affaires pour les années suivantes",""))))) -> 
B17: =B7 -> 2018 | C17: =C7 -> 0 | D17: =IF(E7<2018,"non proratisés","proratisés") -> proratisés | E17: =IF(E7<2018,"non proratisés","proratisés") -> proratisés | F17: =IF(O17=0,"Franchise",IF(O17=1,"Surveillance",IF(O17=2,"Dépassement",""))) -> Franchise | G17: =IF(O17=0,P15,IF(O17=1,P16,IF(O17=2,P13,""))) -> Franchise tout au long de l'année en cours | L17: =IF(C17<D18,0,IF(AND(C17>=D18,C17<=E18),1,IF(C17>E18,2,""))) -> 0 | O17: =IF(L17=0,0,IF(L17=1,1,IF(L17=2,2,""))) -> 0 | P17: =IF(O20=4,"Application du régime réel de TVA tout au long de l'année mais option du régime de franchise en base de TVA à nouveau possible.",IF(O23=4,"Application du régime réel de TVA tout au long de l'année mais option du régime de franchise en base de TVA à nouveau possible.",IF(O26=4,"Application du régime réel de TVA tout au long de l'année mais option du régime de franchise en base de TVA à nouveau possible.",IF(O29=4,"Application du régime réel de TVA tout au long de l'année mais option du régime de franchise en base de TVA à nouveau possible.","")))) -> 
D18: =IF(AND(D17="proratisés",O8=1),AB3,IF(AND(D17="proratisés",O9=1),AB5,IF(AND(D17="proratisés",O10=1),AB5,IF(AND(D17="non proratisés",O8=1),AB2,IF(AND(D17="non proratisés",O9=1),AB4,IF(AND(D17="non proratisés",,D10=1),AB4,"")))))) -> 22164 | E18: =IF(AND(E17="proratisés",O8=1),AC3,IF(AND(E17="proratisés",O9=1),AC5,IF(AND(E17="proratisés",O10=1),AC5,IF(AND(E17="non proratisés",O8=1),AC2,IF(AND(E17="non proratisés",O9=1),AC4,IF(AND(E17="non proratisés",,E10=1),AC4,"")))))) -> 23499 | F18: =IF(F17="","","oui") -> oui
B20: =B17+1 -> 2019 | C20: =C8 -> 0 | D20: =IF(AND(B20>=2017,O9=1),AB4,IF(AND(B20>=2017,O8=1),AB2,IF(AND(B20>=2017,O10=1),AB4,""))) -> 33200 | E20: =IF(AND(B20>=2017,O9=1),AC4,IF(AND(B20>=2017,O8=1),AC2,IF(AND(B20>=2017,O10=1),AC4,""))) -> 35200 | F20: =IF(O20=0,"Franchise",IF(O20=1,"Surveillance",IF(O20=2,"Dépassement",IF(O20=3,"Régime réel de TVA","")))) -> Franchise | G20: =IF(O20=0,P15,IF(O20=1,P16,IF(O20=2,P13,IF(O20=3,P14,IF(O20=4,P17,""))))) -> Franchise tout au long de l'année en cours | L20: =IF(C20<D20,0,IF(AND(C20>=D20,C20<=E20),1,IF(C20>E20,2,""))) -> 0 | M20: =IF(C17<D18,0,IF(AND(C17>=D18,C17<=E18),1,IF(C17>E18,2,""))) -> 0 | O20: =IF(AND(L20=0,M20=0),0,IF(AND(L20=1,O17=0),1,IF(AND(L20=0,O17=1),0,IF(AND(L20=1,O17=1),1,IF(AND(L20=2,O17=0),2,IF(AND(L20=2,O17=1),2,IF(AND(O17=2,L20=0),3,IF(AND(L17=2,L20=1),3,IF(AND(O17=2,L20=2),3,""))))))))) -> 0
F21: =IF(F20="","","oui") -> oui
B23: =B20+1 -> 2020 | C23: =C9 -> 0 | D23: =IF(AND(B23>=2017,O9=1),AB4,IF(AND(B23>=2017,O8=1),AB2,IF(AND(B23>=2017,O10=1),AB4,""))) -> 33200 | E23: =IF(AND(B23>=2017,O9=1),AC4,IF(AND(B23>=2017,O8=1),AC2,IF(AND(B23>=2017,O10=1),AC4,""))) -> 35200 | F23: =IF(O23=0,"Franchise",IF(O23=1,"Surveillance",IF(O23=2,"Dépassement",IF(O23=3,"Régime réel de TVA",IF(O23=4,"Franchise à nouveau possible",""))))) -> Franchise | G23: =IF(O23=0,P15,IF(O23=1,P16,IF(O23=2,P13,IF(O23=3,P14,IF(O23=4,P17,""))))) -> Franchise tout au long de l'année en cours | L23: =IF(C23<D23,0,IF(AND(C23>=D23,C23<=E23),1,IF(C23>E23,2,""))) -> 0 | M23: =IF(C20<D20,0,IF(AND(C20>=D20,C20<=E20),1,IF(C20>E20,2,""))) -> 0 | N23: =IF(C17<D18,0,IF(AND(C17>=D18,C17<=E18),1,IF(C17>E18,2,""))) -> 0 | O23: =IF(AND(AND(O17=0,O20=0,L23=0)),0,IF(AND(AND(O17=1,O20=0,L23=0)),0,IF(AND(AND(O17=0,O20=1,L23=0)),0,IF(AND(AND(O17=0,O20=0,L23=1)),1,IF(AND(AND(O17=0,O20=1,L23=1)),1,IF(AND(AND(O17=1,O20=0,L23=1)),1,IF(AND(L20=2,L23=0),3,IF(AND(L20=1,L23=2),2,IF(AND(AND(O17<=1,O20=0,L23=2)),2,IF(AND(O17=1,O20=1),3,IF(AND(AND(O17=1,O20=2,L23=0)),3,IF(AND(AND(O17=0,O20=2,L23=0)),3,IF(AND(AND(O17=0,O20=2,L23=1)),3,IF(AND(AND(O17=2,O20=2,L23=0)),3,IF(AND(AND(O17=0,O20=2,L23=2)),3,IF(AND(AND(O17=2,O20=3,L23=1)),3,IF(AND(AND(O17=2,O20=3,L23=2)),3,IF(AND(AND(O20=3,L23<=1,M23<=1)),3,IF(AND(AND(L17=2,L20=0,L23=0)),4,""))))))))))))))))))) -> 0
F24: =IF(F23="","","oui") -> oui
B26: =B23+1 -> 2021 | C26: =C10 -> 0 | D26: =IF(AND(B26>=2017,O9=1),AB4,IF(AND(B26>=2017,O8=1),AB2,IF(AND(B26>=2017,O10=1),AB4,""))) -> 33200 | E26: =IF(AND(B26>=2017,O9=1),AC4,IF(AND(B26>=2017,O8=1),AC2,IF(AND(B26>=2017,O10=1),AC4,""))) -> 35200 | F26: =IF(O26=0,"Franchise",IF(O26=1,"Surveillance",IF(O26=2,"Dépassement",IF(O26=3,"Régime réel de TVA",IF(O26=4,"Franchise à nouveau possible",""))))) -> Franchise | G26: =IF(O26=0,P15,IF(O26=1,P16,IF(O26=2,P13,IF(O26=3,P14,IF(O26=4,P17,""))))) -> Franchise tout au long de l'année en cours | L26: =IF(C26<D26,0,IF(AND(C26>=D26,C26<=E26),1,IF(C26>E26,2,""))) -> 0 | M26: =IF(C23<D23,0,IF(AND(C23>=D23,C23<=E23),1,IF(C23>E23,2,""))) -> 0 | N26: =IF(C20<D20,0,IF(AND(C20>=D20,C20<=E20),1,IF(C20>E20,2,""))) -> 0 | O26: =IF(AND(AND(O20=0,O23=0,L26=0)),0,IF(AND(AND(O20=0,O23=1,L26=0)),0,IF(AND(AND(O20=1,O23=0,L26=0)),0,IF(AND(AND(O20=0,O23=0,L26=1)),1,IF(AND(AND(O20=0,O23=1,L26=1)),1,IF(AND(L23=0,L26=2),2,IF(AND(AND(O20=0,O23=0,L26=2)),2,IF(AND(AND(O20=0,O23=1,L26=2)),2,IF(AND(AND(O20=3,O23=3,L26=2)),3,IF(AND(L23=2,L26=0),3,IF(AND(L20=1,L23=1),3,IF(AND(L23=2,L26=1),3,IF(AND(AND(O20=1,O23=1,L26=0)),3,IF(AND(AND(O20=0,O23=2,L26=2)),3,IF(AND(AND(O20=1,O23=3,L26=0)),3,IF(AND(AND(O20=2,O23=3,L26=0)),3,IF(AND(L23=2,L26=2),3,IF(AND(O23=4,L26=0),4,IF(AND(AND(O20=3,L23=1,L26=0)),4,IF(AND(AND(O20=3,L23=1,L26=1)),4,IF(AND(AND(O20=3,L23=0,L26=1)),4,IF(AND(AND(L20=2,L23=0,L26=0)),4,IF(AND(AND(O23=3,L26<=1,M26<=1)),4,""))))))))))))))))))))))) -> 0
F27: =IF(F26="","","oui") -> oui
B29: =B26+1 -> 2022 | C29: =C11 -> 0 | D29: =IF(AND(B29>=2017,O9=1),AB4,IF(AND(B29>=2017,O8=1),AB2,IF(AND(B29>=2017,O10=1),AB4,""))) -> 33200 | E29: =IF(AND(B29>=2017,O9=1),AC4,IF(AND(B29>=2017,O8=1),AC2,IF(AND(B29>=2017,O10=1),AC4,""))) -> 35200 | F29: =IF(O29=0,"Franchise",IF(O29=1,"Surveillance",IF(O29=2,"Dépassement",IF(O29=3,"Régime réel de TVA",IF(O29=4,"Franchise à nouveau possible",""))))) -> Franchise | G29: =IF(O29=0,P15,IF(O29=1,P16,IF(O29=2,P13,IF(O29=3,P14,IF(O29=4,P17,""))))) -> Franchise tout au long de l'année en cours | L29: =IF(C29<D29,0,IF(AND(C29>=D29,C29<=E29),1,IF(C29>E29,2,""))) -> 0 | M29: =IF(C26<D26,0,IF(AND(C26>=D26,C26<=E26),1,IF(C26>E26,2,""))) -> 0 | N29: =IF(C23<D23,0,IF(AND(C23>=D23,C23<=E23),1,IF(C23>E23,2,""))) -> 0 | O29: =IF(AND(AND(O23=0,L26<=1,L29=0)),0,IF(AND(AND(O23<=1,O26=0,L29=0)),0,IF(AND(AND(O23<=1,L26=0,L29=1)),1,IF(AND(AND(O23=0,O26=1,L29=1)),1,IF(AND(AND(L23=0,L26=0,L29=2)),2,IF(AND(AND(L23=0,L26=1,L29=2)),2,IF(AND(AND(O23=4,L26=2,L29=0)),3,IF(AND(L23=1,L26=1),3,IF(AND(AND(L23=1,L26=2,L29=0)),3,IF(AND(AND(L23=1,L26=2,L29=1)),3,IF(AND(AND(O23=0,L26=2,L29=0)),3,IF(AND(AND(L23=0,L26=2,L29=1)),3,IF(AND(AND(L23=0,L26=2,L29=2)),3,IF(AND(AND(L23=2,L26=0,L29=1)),3,IF(AND(AND(O23=3,L26=2,L29=2)),3,IF(AND(AND(O26=3,L29>=1,M29>=1)),3,IF(AND(AND(O26=2,L29<=1,M29=2)),3,IF(AND(O26=4,L29=0),4,IF(AND(AND(O26=4,L29=1,M29<=1)),4,IF(AND(AND(O26=3,L29=0,M29=0)),3,"")))))))))))))))))))) -> 0
F30: =IF(F29="","","oui") -> oui
B33: © UPSME Août 2018
